fUSD/lending_fUSD_20250103
["ID","MTS","AMOUNT","RATE_DAILY","PERIOD"]
[347500670,1735882245611,-500.0,9.597e-05,2]
[347500671,1735882245621,-500.0,9.597e-05,2]
[347500672,1735882245632,-548.02900469,9.597e-05,2]
[347500673,1735882245643,-700.11,9.597e-05,2]
[347500674,1735882245653,-671.88,9.597e-05,2]
[347500675,1735882245663,-500.0,9.597e-05,2]
[347500676,1735882245672,-500.0,9.597e-05,2]
[347500677,1735882245682,-1060.27,9.597e-05,2]
[347500678,1735882245691,-1766.79,9.597e-05,2]
[347500679,1735882245700,-3596.29,9.597e-05,2]
[347500680,1735882245709,-500.0,9.597e-05,2]
[347500681,1735882245719,-500.0,9.597e-05,2]
[347500682,1735882245731,-500.0,9.597e-05,2]
[347500683,1735882245742,-500.0,9.597e-05,2]
[347500684,1735882245755,-500.0,9.597e-05,2]
[347500685,1735882245765,-500.0,9.597e-05,2]
[347500686,1735882245775,-1360.48,9.597e-05,2]
[347500687,1735882245785,-517.24,9.597e-05,2]
[347500688,1735882245795,-1627.85,9.597e-05,2]
[347500689,1735882245805,-500.0,9.597e-05,2]
[347500690,1735882245815,-843.54,9.597e-05,2]
[347500691,1735882245825,-500.62854446,9.597e-05,2]
[347500692,1735882245835,-500.0,9.597e-05,2]
[347500693,1735882245845,-500.86313,9.597e-05,2]
[347500694,1735882245855,-500.0,9.597e-05,2]
[347500695,1735882245864,-4027.28,9.597e-05,2]
[347500696,1735882245875,-500.0,9.597e-05,2]
[347500697,1735882245884,-560.25,9.597e-05,2]
[347500698,1735882245894,-500.0,9.597e-05,2]
[347500699,1735882245903,-500.0,9.597e-05,2]
[347500700,1735882245912,-500.0,9.597e-05,2]
[347500701,1735882245922,-1420.97,9.597e-05,2]
[347500702,1735882245933,-2063.67,9.597e-05,2]
[347500703,1735882245942,-685.54,9.597e-05,2]
[347500704,1735882245953,-2590.82,9.597e-05,2]
[347500705,1735882245963,-500.0,9.597e-05,2]
[347500706,1735882245973,-500.0,9.597e-05,2]
[347500707,1735882245983,-500.0,9.597e-05,2]
[347500708,1735882245992,-2922.52,9.597e-05,2]
[347500709,1735882246002,-500.0,9.597e-05,2]
[347500710,1735882246011,-866.71,9.597e-05,2]
[347500711,1735882246021,-500.0,9.597e-05,2]
[347500712,1735882246030,-500.0,9.597e-05,2]
[347500713,1735882246039,-500.0,9.597e-05,2]
[347500714,1735882246048,-500.0,9.597e-05,2]
[347500716,1735882246058,-500.0,9.597e-05,2]
[347500717,1735882246067,-500.0,9.597e-05,2]
[347500718,1735882246078,-500.0,9.597e-05,2]
[347500719,1735882246087,-500.0,9.597e-05,2]
[347500720,1735882246097,-1127.08,9.597e-05,2]
[347500721,1735882246106,-500.0,9.597e-05,2]
[347500722,1735882246118,-500.0,9.597e-05,2]
[347500723,1735882246127,-611.13,9.597e-05,2]
[347500724,1735882246136,-500.0,9.597e-05,2]
[347500725,1735882246146,-500.0,9.597e-05,2]
[347500726,1735882246155,-1020.98,9.597e-05,2]
[347500727,1735882246164,-5695.17,9.597e-05,2]
[347500728,1735882246173,-520.37,9.597e-05,2]
[347500729,1735882246183,-1805.02,9.597e-05,2]
[347500730,1735882246192,-500.0,9.597e-05,2]
[347500731,1735882246201,-500.0,9.597e-05,2]
[347500732,1735882246211,-1021.58,9.597e-05,2]
[347500733,1735882246220,-500.0,9.597e-05,2]
[347500734,1735882246230,-500.0,9.597e-05,2]
[347500735,1735882246239,-500.0,9.597e-05,2]
[347500736,1735882246248,-500.0,9.597e-05,2]
[347500737,1735882246257,-500.0,9.597e-05,2]
[347500738,1735882246266,-500.0,9.597e-05,2]
[347500739,1735882246276,-500.0,9.597e-05,2]
[347500740,1735882246285,-609.47827839,9.597e-05,2]
[347500741,1735882246295,-500.0,9.597e-05,2]
[347500742,1735882246304,-500.0,9.597e-05,2]
[347500743,1735882246313,-500.0,9.597e-05,2]
[347500744,1735882246323,-500.0,9.597e-05,2]
[347500745,1735882246332,-500.0,9.597e-05,2]
[347500746,1735882246342,-500.0,9.597e-05,2]
[347500747,1735882246351,-500.0,9.597e-05,2]
[347500748,1735882246360,-500.0,9.597e-05,2]
[347500749,1735882246369,-500.0,9.597e-05,2]
[347500750,1735882246378,-500.0,9.597e-05,2]
[347500751,1735882246387,-500.0,9.597e-05,2]
[347500752,1735882246397,-500.0,9.597e-05,2]
[347500753,1735882246406,-500.0,9.597e-05,2]
[347500754,1735882246415,-500.0,9.597e-05,2]
[347500755,1735882246425,-500.0,9.597e-05,2]
[347500756,1735882246434,-500.0,9.597e-05,2]
[347500757,1735882246443,-500.0,9.597e-05,2]
[347500758,1735882246453,-500.0,9.597e-05,2]
[347500759,1735882246462,-500.0,9.597e-05,2]
[347500760,1735882246471,-500.0,9.597e-05,2]
[347500761,1735882246480,-500.0,9.597e-05,2]
[347500762,1735882246490,-500.0,9.597e-05,2]
[347500763,1735882246499,-500.0,9.597e-05,2]
[347500764,1735882246508,-500.0,9.597e-05,2]
[347500765,1735882246518,-500.0,9.597e-05,2]
[347500766,1735882246527,-500.0,9.597e-05,2]
[347500767,1735882246536,-500.0,9.597e-05,2]
[347500768,1735882246546,-500.0,9.597e-05,2]
[347500769,1735882246555,-500.0,9.597e-05,2]
[347500770,1735882246564,-560.6,9.597e-05,2]
[347500772,1735882246573,-500.0,9.597e-05,2]
[347500773,1735882246583,-253.49250173,9.597e-05,2]
[347500774,1735882246591,-890.52,9.597e-05,2]
[347500775,1735882246600,-500.0,9.597e-05,2]
[347500776,1735882246609,-500.0,9.597e-05,2]
[347500777,1735882246619,-500.0,9.597e-05,2]
[347500778,1735882246627,-500.0,9.597e-05,2]
[347500779,1735882246637,-500.0,9.597e-05,2]
[347500780,1735882246646,-654.17,9.597e-05,2]
[347500781,1735882246655,-500.0,9.597e-05,2]
[347500782,1735882246664,-500.0,9.597e-05,2]
[347500783,1735882246673,-767.74,9.597e-05,2]
[347500784,1735882246682,-1965.52,9.597e-05,2]
[347500785,1735882246691,-692.8,9.597e-05,2]
[347500786,1735882246700,-500.0,9.597e-05,2]
[347500787,1735882246710,-500.0,9.597e-05,2]
[347500788,1735882246719,-1310.24,9.597e-05,2]
[347500789,1735882246728,-1982.7,9.597e-05,2]
[347500790,1735882246737,-1326.78,9.597e-05,2]
[347500791,1735882246751,-500.0,9.597e-05,2]
[347500792,1735882246761,-500.0,9.597e-05,2]
[347500793,1735882246770,-1288.35,9.597e-05,2]
[347500794,1735882246779,-2543.03,9.597e-05,2]
[347500795,1735882246788,-500.0,9.597e-05,2]
[347500796,1735882246798,-500.0,9.597e-05,2]
[347500797,1735882246807,-500.0,9.597e-05,2]
[347500798,1735882246816,-500.0,9.597e-05,2]
[347500799,1735882246828,-500.0,9.597e-05,2]
[347500800,1735882246838,-500.0,9.597e-05,2]
[347500801,1735882246851,-500.0,9.597e-05,2]
[347500802,1735882246861,-500.0,9.597e-05,2]
[347500803,1735882246872,-551.79867337,9.597e-05,2]
[347500804,1735882246897,-473.33495,9.597e-05,2]
[347500805,1735882248397,-415.31692854,9.595e-05,2]
[347500806,1735882248421,-84.68307146,9.595e-05,2]
[347500807,1735882248431,-689.29637663,9.597e-05,2]
[347500808,1735882248441,-500.0,9.597e-05,2]
[347500809,1735882248450,-500.0,9.597e-05,2]
[347500810,1735882248459,-500.0,9.597e-05,2]
[347500811,1735882248468,-844.69978909,9.597e-05,2]
[347500812,1735882249373,-340.72536139,9.595e-05,2]
[347500813,1735882249407,-159.27463861,9.595e-05,2]
[347500814,1735882249416,-500.0,9.595e-05,2]
[347500815,1735882249426,-21.72536139,9.596e-05,2]
[347500816,1735882249462,-58.58896089,9.596e-05,2]
[347500817,1735882373789,161.92,8.504e-05,2]
[347500818,1735882596568,1625.02,8.219e-05,2]
[347500819,1735882718478,250.0,8.492e-05,2]
[347500820,1735882763288,372.72,8.49e-05,2]
[347500821,1735882776046,1490.16462616,0.0002,120]
[347500824,1735883103435,150.0,8.63e-05,2]
[347500825,1735883106628,150.0,8.63e-05,2]
[347500826,1735883113457,150.0,8.63e-05,2]
[347500827,1735883230929,1000.0,8.487e-05,2]
[347500828,1735883312243,150.0,0.00017,60]
[347500838,1735883432478,-150.0,9.11e-05,2]
[347500839,1735883432487,-230.989,9.17e-05,2]
[347500840,1735883432496,-600.0,9.203e-05,2]
[347500841,1735883432507,-1800.0,9.203e-05,2]
[347500842,1735883432518,-150.0,9.342e-05,2]
[347500843,1735883432527,-150.0,9.377e-05,2]
[347500844,1735883432537,-361.29,9.38e-05,2]
[347500845,1735883432546,-150.0,9.384e-05,2]
[347500846,1735883432556,-150.0,9.385e-05,2]
[347500847,1735883432565,-150.0,9.385e-05,2]
[347500848,1735883432574,-150.0,9.385e-05,2]
[347500849,1735883432584,-150.0,9.387e-05,2]
[347500850,1735883432594,-150.0,9.392e-05,2]
[347500851,1735883432603,-1500.0,9.394e-05,2]
[347500852,1735883432612,-150.0,9.398e-05,2]
[347500853,1735883432621,-150.0,9.4e-05,2]
[347500854,1735883432630,-150.0,9.408e-05,2]
[347500855,1735883432640,-150.0,9.408e-05,2]
[347500856,1735883432649,-150.0,9.408e-05,2]
[347500857,1735883432659,-150.0,9.409e-05,2]
[347500858,1735883432669,-150.0,9.413e-05,2]
[347500859,1735883432678,-150.0,9.416e-05,2]
[347500860,1735883432687,-150.0,9.418e-05,2]
[347500861,1735883432696,-150.0,9.419e-05,2]
[347500862,1735883432706,-150.0,9.421e-05,2]
[347500863,1735883432715,-150.0,9.424e-05,2]
[347500864,1735883432724,-150.0,9.426e-05,2]
[347500865,1735883432734,-150.0,9.428e-05,2]
[347500866,1735883432743,-150.0,9.432e-05,2]
[347500867,1735883432752,-150.0,9.433e-05,2]
[347500868,1735883432761,-150.0,9.434e-05,2]
[347500869,1735883432772,-150.0,9.436e-05,2]
[347500870,1735883432781,-150.0,9.436e-05,2]
[347500871,1735883432790,-150.0,9.443e-05,2]
[347500872,1735883432799,-150.0,9.444e-05,2]
[347500873,1735883432808,-150.0,9.445e-05,2]
[347500874,1735883432817,-150.0,9.446e-05,2]
[347500875,1735883432826,-150.0,9.446e-05,2]
[347500876,1735883432835,-150.0,9.449e-05,2]
[347500877,1735883432844,-150.0,9.451e-05,2]
[347500878,1735883432854,-150.0,9.453e-05,2]
[347500879,1735883432863,-150.0,9.46e-05,2]
[347500880,1735883432872,-150.0,9.462e-05,2]
[347500881,1735883432881,-150.0,9.463e-05,2]
[347500883,1735883432891,-150.0,9.463e-05,2]
[347500885,1735883432899,-1500.0,9.463e-05,2]
[347500886,1735883432909,-150.0,9.466e-05,2]
[347500888,1735883432918,-150.0,9.467e-05,2]
[347500890,1735883432927,-150.0,9.471e-05,2]
[347500892,1735883432937,-150.0,9.472e-05,2]
[347500894,1735883432946,-150.0,9.472e-05,2]
[347500895,1735883432955,-150.0,9.476e-05,2]
[347500896,1735883432964,-150.0,9.478e-05,2]
[347500897,1735883432973,-150.0,9.478e-05,2]
[347500898,1735883432983,-150.0,9.481e-05,2]
[347500900,1735883432992,-150.0,9.483e-05,2]
[347500901,1735883433000,-150.0,9.484e-05,2]
[347500902,1735883433010,-150.0,9.486e-05,2]
[347500903,1735883433019,-150.0,9.494e-05,2]
[347500904,1735883433028,-150.0,9.5e-05,2]
[347500905,1735883433037,-1000.0,9.5e-05,2]
[347500906,1735883433046,-150.0,9.502e-05,2]
[347500907,1735883433055,-150.0,9.504e-05,2]
[347500908,1735883433064,-150.0,9.505e-05,2]
[347500909,1735883433073,-150.0,9.505e-05,2]
[347500910,1735883433082,-150.0,9.508e-05,2]
[347500911,1735883433091,-150.0,9.514e-05,2]
[347500912,1735883433099,-150.0,9.516e-05,2]
[347500913,1735883433108,-150.0,9.518e-05,2]
[347500914,1735883433118,-150.0,9.521e-05,2]
[347500915,1735883433127,-150.0,9.529e-05,2]
[347500916,1735883433136,-150.0,9.529e-05,2]
[347500917,1735883433145,-150.0,9.529e-05,2]
[347500918,1735883433154,-150.0,9.533e-05,2]
[347500919,1735883433163,-150.0,9.533e-05,2]
[347500920,1735883433172,-150.0,9.534e-05,2]
[347500921,1735883433181,-150.0,9.535e-05,2]
[347500922,1735883433190,-150.0,9.536e-05,2]
[347500923,1735883433199,-150.0,9.537e-05,2]
[347500924,1735883433208,-150.0,9.541e-05,2]
[347500925,1735883433217,-150.0,9.544e-05,2]
[347500926,1735883433226,-150.0,9.547e-05,2]
[347500927,1735883433236,-150.0,9.547e-05,2]
[347500928,1735883433245,-1000.0,9.548e-05,2]
[347500929,1735883433260,-372.72,9.551e-05,2]
[347500930,1735883433271,-1500.0,9.554e-05,2]
[347500931,1735883433281,-150.0,9.559e-05,2]
[347500932,1735883433290,-150.0,9.565e-05,2]
[347500933,1735883433302,-150.0,9.569e-05,2]
[347500934,1735883433311,-150.0,9.576e-05,2]
[347500935,1735883433320,-150.0,9.578e-05,2]
[347500936,1735883433330,-150.0,9.584e-05,2]
[347500937,1735883433339,-150.0,9.587e-05,2]
[347500938,1735883433349,-150.0,9.589e-05,2]
[347500939,1735883433358,-150.0,9.589e-05,2]
[347500940,1735883433369,-150.0,9.589e-05,2]
[347500941,1735883433378,-150.0,9.589e-05,2]
[347500942,1735883433388,-3000.0,9.589e-05,2]
[347500943,1735883433397,-225.01,9.59e-05,3]
[347500944,1735883433407,-28581.9999683,9.591e-05,2]
[347500945,1735883433416,-2254.7920491,9.591e-05,2]
[347500946,1735883433425,-150.0,9.591e-05,2]
[347500947,1735883433434,-150.0,9.593e-05,2]
[347500948,1735883433444,-894.53,9.593e-05,2]
[347500949,1735883433454,-723.22,9.593e-05,2]
[347500950,1735883433463,-1209.28,9.593e-05,2]
[347500951,1735883433473,-1126.81,9.593e-05,2]
[347500952,1735883433482,-500.0,9.593e-05,2]
[347500953,1735883433492,-1911.34,9.593e-05,2]
[347500954,1735883433502,-500.0,9.593e-05,2]
[347500955,1735883433513,-1773.68,9.593e-05,2]
[347500956,1735883433525,-500.0,9.593e-05,2]
[347500957,1735883433536,-627.24,9.593e-05,2]
[347500958,1735883433547,-500.0,9.593e-05,2]
[347500959,1735883433557,-500.0,9.593e-05,2]
[347500960,1735883433567,-500.0,9.593e-05,2]
[347500961,1735883433577,-500.0,9.593e-05,2]
[347500962,1735883433586,-500.0,9.593e-05,2]
[347500963,1735883433596,-500.0,9.593e-05,2]
[347500964,1735883433606,-674.23,9.593e-05,2]
[347500965,1735883433615,-500.0,9.593e-05,2]
[347500966,1735883433625,-1292.57,9.593e-05,2]
[347500967,1735883433634,-533.0,9.593e-05,2]
[347500968,1735883433644,-500.0,9.593e-05,2]
[347500969,1735883433654,-500.0,9.593e-05,2]
[347500970,1735883433663,-500.0,9.593e-05,2]
[347500971,1735883433673,-500.0,9.593e-05,2]
[347500972,1735883433683,-1205.56,9.593e-05,2]
[347500973,1735883433692,-629.53,9.593e-05,2]
[347500974,1735883433702,-500.0,9.593e-05,2]
[347500975,1735883433712,-500.0,9.593e-05,2]
[347500976,1735883433722,-807.39,9.593e-05,2]
[347500977,1735883433732,-500.0,9.593e-05,2]
[347500978,1735883433742,-1354.89,9.593e-05,2]
[347500979,1735883433752,-1403.04,9.593e-05,2]
[347500980,1735883433763,-2458.59,9.593e-05,2]
[347500981,1735883433777,-500.0,9.593e-05,2]
[347500982,1735883433787,-500.0,9.593e-05,2]
[347500983,1735883433797,-539.55,9.593e-05,2]
[347500984,1735883433807,-500.0,9.593e-05,2]
[347500985,1735883433817,-500.0,9.593e-05,2]
[347500986,1735883433827,-500.0,9.593e-05,2]
[347500987,1735883433837,-1586.7,9.593e-05,2]
[347500988,1735883433847,-500.0,9.593e-05,2]
[347500989,1735883433857,-1969.36,9.593e-05,2]
[347500990,1735883433867,-500.0,9.593e-05,2]
[347500991,1735883433876,-500.0,9.593e-05,2]
[347500992,1735883433886,-1269.3,9.593e-05,2]
[347500993,1735883433896,-500.0,9.593e-05,2]
[347500994,1735883433906,-887.01,9.593e-05,2]
[347500995,1735883433915,-9195.29,9.593e-05,2]
[347500996,1735883433925,-500.0,9.593e-05,2]
[347500997,1735883433935,-500.0,9.593e-05,2]
[347500998,1735883433944,-500.0,9.593e-05,2]
[347500999,1735883433954,-840.16,9.593e-05,2]
[347501000,1735883433963,-4754.41,9.593e-05,2]
[347501001,1735883433972,-500.76723205,9.593e-05,2]
[347501002,1735883433982,-500.0,9.593e-05,2]
[347501003,1735883433991,-150.0,9.593e-05,2]
[347501004,1735883434001,-500.0,9.593e-05,2]
[347501005,1735883434010,-741.44,9.593e-05,2]
[347501006,1735883434021,-500.0,9.593e-05,2]
[347501007,1735883434030,-500.0,9.593e-05,2]
[347501008,1735883434039,-8477.22,9.593e-05,2]
[347501009,1735883434048,-500.0,9.593e-05,2]
[347501010,1735883434058,-500.0,9.593e-05,2]
[347501011,1735883434067,-1238.89272041,9.593e-05,2]
[347501012,1735883434108,-992.18563616,9.593e-05,2]
[347501013,1735883434119,-2113.28286315,9.593e-05,2]
[347501014,1735883434451,-2391.1036951,9.593e-05,2]
[347501015,1735883434464,-1535.79576675,9.593e-05,2]
[347501016,1735883434538,-150.0,9.476e-05,2]
[347501017,1735883434547,-150.0,9.56e-05,2]
[347501018,1735883434557,-1967.2663894,9.593e-05,2]
[347501026,1735883438270,-150.0,9.399e-05,2]
[347501027,1735883438279,-150.0,9.566e-05,2]
[347501028,1735883438289,-7461.75157969,9.593e-05,2]
[347501029,1735883438437,-3795.74206834,9.593e-05,2]
[347501030,1735883438449,-852.99136144,9.593e-05,2]
[347501032,1735883438497,-377.62607467,9.593e-05,2]
[347501033,1735883438508,-1002.85632196,9.593e-05,2]
[347501137,1735883440224,-343.88842845,9.592e-05,2]
[347501138,1735883440236,-372.29157155,9.592e-05,2]
[347501139,1735883440245,-918.45948451,9.593e-05,2]
[347501140,1735883440338,-330.60031976,9.593e-05,2]
[347501144,1735883440827,-4048.23686576,9.593e-05,2]
[347501145,1735883440876,-651.0,9.593e-05,2]
[347501148,1735883443366,-1402.4688529,9.593e-05,2]
[347501149,1735883443376,-814.34,9.593e-05,2]
[347501151,1735883443385,-825.98544074,9.593e-05,2]
[347501154,1735883443423,-939.72455926,9.593e-05,2]
[347501155,1735883443431,-500.0,9.593e-05,2]
[347501156,1735883443440,-500.0,9.593e-05,2]
[347501157,1735883443450,-910.88,9.593e-05,2]
[347501158,1735883443458,-799.29,9.593e-05,2]
[347501159,1735883443467,-260.26728572,9.593e-05,2]
[347501160,1735883443476,-500.0,9.593e-05,2]
[347501161,1735883443485,-500.0,9.593e-05,2]
[347501162,1735883443494,-500.0,9.593e-05,2]
[347501163,1735883443503,-576.94,9.593e-05,2]
[347501164,1735883443512,-500.0,9.593e-05,2]
[347501165,1735883443520,-500.0,9.593e-05,2]
[347501166,1735883443531,-500.0,9.593e-05,2]
[347501167,1735883443541,-500.0,9.593e-05,2]
[347501168,1735883443550,-500.0,9.593e-05,2]
[347501169,1735883443560,-1368.89815502,9.593e-05,2]
[347501170,1735883443611,-2259.26184498,9.593e-05,2]
[347501171,1735883443621,-500.0,9.593e-05,2]
[347501172,1735883443630,-500.0,9.593e-05,2]
[347501173,1735883443639,-500.0,9.593e-05,2]
[347501174,1735883443648,-500.0,9.593e-05,2]
[347501175,1735883443658,-500.0,9.593e-05,2]
[347501176,1735883443667,-549.27,9.593e-05,2]
[347501177,1735883443676,-406.36528246,9.593e-05,2]
[347501178,1735883443685,-572.87,9.593e-05,2]
[347501179,1735883443695,-500.0,9.593e-05,2]
[347501180,1735883443704,-500.0,9.593e-05,2]
[347501181,1735883443714,-1618.31,9.593e-05,2]
[347501182,1735883443723,-507.62,9.593e-05,2]
[347501183,1735883443732,-500.0,9.593e-05,2]
[347501184,1735883443742,-2696.36,9.593e-05,2]
[347501185,1735883443751,-3985.9819841,9.593e-05,2]
[347501186,1735883443775,-4419.6380159,9.593e-05,2]
[347501187,1735883443784,-500.0,9.593e-05,2]
[347501188,1735883443794,-500.0,9.593e-05,2]
[347501189,1735883443803,-500.0,9.593e-05,2]
[347501190,1735883443812,-500.0,9.593e-05,2]
[347501191,1735883443821,-562.26,9.593e-05,2]
[347501192,1735883443830,-6140.60172832,9.593e-05,2]
[347501193,1735883443865,-310.32320128,9.593e-05,2]
[347501207,1735883443998,-652.519868,9.593e-05,2]
[347501245,1735883446597,-2135.9652024,9.593e-05,2]
[347501246,1735883446606,-500.0,9.593e-05,2]
[347501247,1735883446615,-608.89,9.593e-05,2]
[347501248,1735883446624,-676.61,9.593e-05,2]
[347501249,1735883446633,-3591.23623007,9.593e-05,2]
[347501250,1735883446644,-5771.60791159,9.593e-05,2]
[347501251,1735883446655,-986.30146054,9.593e-05,2]
[347501254,1735883446728,-3379.3443978,9.593e-05,2]
[347501256,1735883446737,-502.23,9.593e-05,2]
[347501258,1735883446746,-2524.52,9.593e-05,2]
[347501260,1735883446754,-500.0,9.593e-05,2]
[347501261,1735883446763,-653.24,9.593e-05,2]
[347501263,1735883446772,-1592.81,9.593e-05,2]
[347501265,1735883446783,-500.0,9.593e-05,2]
[347501266,1735883446792,-7566.63,9.593e-05,2]
[347501267,1735883446801,-500.0,9.593e-05,2]
[347501268,1735883446809,-800.41,9.593e-05,2]
[347501269,1735883446818,-500.0,9.593e-05,2]
[347501271,1735883446827,-500.0,9.593e-05,2]
[347501272,1735883446836,-192.8156022,9.593e-05,2]
[347501273,1735883446847,-2002.15057168,9.593e-05,2]
[347501274,1735883466855,1585.71,8.219e-05,2]
[347501276,1735883609515,250.0,8.598e-05,2]
[347501277,1735883629010,405.6,8.579e-05,2]
[347501279,1735884161914,1000.0,8.499e-05,2]
[347501280,1735884298839,500.0,9e-05,2]
[347501281,1735884352320,1506.42,8.219e-05,2]
[347501282,1735884359141,169.0,9e-05,2]
[347501283,1735884512738,2621.66451574,8.44e-05,7]
[347501290,1735884561365,500.0,8.22e-05,2]
[347501291,1735884561576,1700.0,8.22e-05,2]
[347501292,1735884562810,500.0,8.22e-05,2]
[347501296,1735884570634,223.63,8.477e-05,2]
[347501297,1735884575355,3846.07,8.478e-05,2]
[347501298,1735884590243,250.0,8.483e-05,2]
[347501302,1735884631705,-258.15,9.17e-05,2]
[347501303,1735884631714,-300.0,9.213e-05,2]
[347501304,1735884631723,-411.4,9.214e-05,2]
[347501305,1735884631737,-82.78,9.214e-05,2]
[347501306,1735884631748,-494.32951664,9.214e-05,2]
[347501307,1735884631760,-933.2,9.214e-05,2]
[347501310,1735884632554,-12175.47048336,9.214e-05,2]
[347501311,1735884632563,-300.0,9.359e-05,2]
[347501312,1735884632572,-150.0,9.362e-05,2]
[347501313,1735884632582,-200.0,9.366e-05,2]
[347501314,1735884632591,-150.0,9.375e-05,2]
[347501315,1735884632600,-150.0,9.38e-05,2]
[347501316,1735884632610,-150.0,9.382e-05,2]
[347501317,1735884632619,-150.0,9.391e-05,2]
[347501318,1735884632628,-150.0,9.403e-05,2]
[347501319,1735884632637,-150.0,9.405e-05,2]
[347501320,1735884632646,-150.0,9.419e-05,2]
[347501321,1735884632658,-150.0,9.423e-05,2]
[347501322,1735884632667,-150.0,9.425e-05,2]
[347501323,1735884632676,-150.0,9.426e-05,2]
[347501324,1735884632685,-150.0,9.427e-05,2]
[347501325,1735884632694,-150.0,9.435e-05,2]
[347501326,1735884632703,-241.51,9.437e-05,2]
[347501327,1735884632713,-150.0,9.439e-05,2]
[347501328,1735884632722,-150.0,9.448e-05,2]
[347501329,1735884632732,-150.0,9.455e-05,2]
[347501330,1735884632742,-150.0,9.457e-05,2]
[347501331,1735884632751,-150.0,9.465e-05,2]
[347501332,1735884632761,-2500.0,9.467e-05,2]
[347501333,1735884632770,-150.0,9.47e-05,2]
[347501334,1735884632779,-137.30224581,9.478e-05,2]
[347501343,1735884637517,-12.69775419,9.478e-05,2]
[347501344,1735884637528,-150.0,9.485e-05,2]
[347501345,1735884637537,-150.0,9.49e-05,2]
[347501346,1735884637547,-1.84224571,9.492e-05,2]
[347501347,1735884637567,-265.70279033,9.492e-05,2]
[347501358,1735884639575,-261.46963713,9.492e-05,2]
[347501359,1735884639587,-1970.98532683,9.492e-05,2]
[347501360,1735884639598,-150.0,9.494e-05,2]
[347501361,1735884639608,-150.0,9.512e-05,2]
[347501362,1735884639617,-150.0,9.522e-05,2]
[347501363,1735884639627,-150.0,9.523e-05,2]
[347501364,1735884639636,-197.91792299,9.528e-05,2]
[347501365,1735884639645,-150.0,9.53e-05,2]
[347501366,1735884639655,-150.0,9.531e-05,2]
[347501367,1735884639664,-223.63,9.536e-05,2]
[347501368,1735884639674,-1500.0,9.541e-05,2]
[347501369,1735884639683,-150.0,9.545e-05,2]
[347501370,1735884639692,-150.0,9.545e-05,2]
[347501371,1735884639702,-150.0,9.551e-05,2]
[347501372,1735884639714,-150.0,9.557e-05,2]
[347501373,1735884639723,-1775.76,9.557e-05,2]
[347501374,1735884639733,-500.0,9.557e-05,2]
[347501375,1735884639742,-3863.39,9.557e-05,2]
[347501376,1735884639752,-110583.99087565,9.558e-05,2]
[347501384,1735884645497,-500.0,9.557e-05,2]
[347501385,1735884645507,-88.94,9.557e-05,2]
[347501386,1735884645518,-411.06,9.557e-05,2]
[347501387,1735884645527,-9206.80774051,9.558e-05,2]
[347501388,1735884645538,-8473.57205103,9.558e-05,2]
[347501389,1735884645594,-926.03589053,9.558e-05,2]
[347501390,1735884645771,-1224.73989343,9.558e-05,2]
[347501536,1735884928192,233.47,8.481e-05,2]
[347501537,1735885022127,2183.96,8.481e-05,2]
[347501538,1735885129850,1000.0,8.477e-05,2]
[347501539,1735885178314,163.89,8.478e-05,2]
[347501540,1735885213098,250.0,8.473e-05,2]
[347501541,1735885364190,1474.9,8.219e-05,2]
[347501542,1735885394495,2000.0,8.467e-05,2]
[347501571,1735885758340,400.82,8.471e-05,2]
[347501582,1735885831807,-255.244,9.12e-05,2]
[347501583,1735885831818,-150.0,9.326e-05,2]
[347501584,1735885831827,-150.0,9.336e-05,2]
[347501585,1735885831837,-150.0,9.339e-05,2]
[347501586,1735885831848,-150.0,9.344e-05,2]
[347501587,1735885831857,-150.0,9.352e-05,2]
[347501588,1735885831867,-150.0,9.36e-05,2]
[347501589,1735885831876,-502.09,9.368e-05,2]
[347501590,1735885831886,-150.0,9.37e-05,2]